bitfinex-derivatives/quotes_ETHF0:USTF0_20250824
["timestamp","ask_amount","ask_price","bid_price","bid_amount"]
[1756046301564,0.87329152,4779.0,4778.9,1.7429]
[1756046301968,1.20039152,4779.0,4778.9,1.7429]
[1756046302365,1.49769152,4779.0,4778.9,1.7429]
[1756046302566,1.71689152,4779.0,4778.9,1.7429]
[1756046302781,1.71689152,4779.0,4778.9,1.3974]
[1756046302977,1.94879152,4779.0,4778.9,0.9458]
[1756046303277,1.94879152,4779.0,4778.9,0.7892]
[1756046303579,1.94879152,4779.0,4778.7,0.41861]
[1756046303780,1.3035,4778.8,4778.7,0.41861]
[1756046304180,1.3035,4778.8,4778.7,0.94581]
[1756046304382,1.0716,4778.8,4778.7,1.39741]
[1756046304773,0.5551,4778.8,4778.7,1.74291]
[1756046304977,0.7445,4779.2,4779.1,1.74288]
[1756046305176,1.39358057,4779.2,4779.1,1.74288]
[1756046305376,0.64908057,4779.2,4779.1,3.14135076]
[1756046305780,0.5551,4779.8,4779.7,1.74283]
[1756046305981,0.8524,4779.8,4779.7,1.74283]
[1756046306182,1.72062839,4779.8,4779.7,1.74283]
[1756046306482,1.17432839,4779.8,4779.6,0.41854]
[1756046306685,1.95252839,4779.7,4779.6,0.41854]
[1756046306884,1.95252839,4779.7,4779.6,0.64504]
[1756046307583,1.72062839,4779.7,4779.6,1.74284]
[1756046307784,1.72062839,4779.7,4779.6,1.17894]
[1756046307983,1.95252839,4779.7,4779.6,1.17894]
[1756046308178,1.95252839,4779.7,4779.6,0.78914]
[1756046308380,1.0843,4779.5,4779.4,0.41855]
[1756046308575,1.95252839,4779.5,4779.4,0.41855]
[1756046308779,1.95252839,4779.5,4779.4,0.78915]
[1756046309079,1.95252839,4779.5,4779.4,1.02235]
[1756046309282,1.95252839,4779.5,4779.4,0.78915]
[1756046310882,0.7572,4779.2,4778.6,0.5787]
[1756046311084,1.95261211,4779.1,4779.0,0.78919]
[1756046311283,1.72071211,4779.1,4779.0,1.74289]
[1756046315788,1.95261211,4779.1,4779.0,1.17899]
[1756046315986,0.64911211,4779.1,4779.0,9.88586701]
[1756046316193,0.8524,4780.0,4779.9,0.93761]
[1756046316392,1.50252155,4780.0,4779.9,1.74281]
[1756046316690,0.65012155,4780.0,4779.9,1.74281]
[1756046318177,1.53242155,4780.0,4779.9,1.74281]
[1756046318695,1.76022155,4780.0,4779.9,1.74281]
[1756046319190,1.53242155,4780.0,4779.9,1.74281]
[1756046319592,0.65012155,4780.0,4779.9,1.74281]
[1756046320295,0.88132155,4780.0,4779.9,1.74281]
[1756046320795,1.04012155,4780.0,4779.9,1.74281]
[1756046320996,0.88132155,4780.0,4779.9,1.74281]
[1756046322392,1.19522155,4780.0,4779.9,1.74281]
[1756046322597,1.76022155,4780.0,4779.9,1.74281]
[1756046322895,0.65012155,4780.0,4779.9,1.74281]
[1756046323288,0.8823,4780.5,4780.4,0.41847]
[1756046323489,1.52903148,4780.5,4780.4,1.76557]
[1756046323690,1.75683148,4780.5,4780.4,1.76557]
[1756046324494,1.98623148,4780.5,4780.4,0.65717]
[1756046324689,1.98623148,4780.5,4780.4,0.41847]
[1756046325294,1.98623148,4780.5,4780.4,1.76557]
[1756046325594,1.98623148,4780.5,4780.4,0.41847]
[1756046326298,1.98623148,4780.5,4780.4,0.65717]
[1756046326991,0.5451,4780.2,4780.1,0.6572]
[1756046327194,1.3395,4779.8,4779.7,0.65723]
[1756046327395,1.98623148,4779.8,4779.7,0.41853]
[1756046327593,1.3395,4779.6,4779.5,0.41854]
[1756046327895,1.98623148,4779.6,4779.5,0.41854]
[1756046329200,1.3395,4779.0,4778.9,0.5469]
[1756046329391,1.98622205,4779.0,4778.9,0.2387]
[1756046329695,0.87792205,4779.0,4778.9,1.7657]
[1756046330193,1.52902205,4779.0,4778.9,1.7657]
[1756046330400,1.98622205,4779.0,4778.9,0.8825]
[1756046330597,1.98622205,4779.0,4778.9,0.6573]
[1756046331300,1.98622205,4779.0,4778.9,1.1907]
[1756046331798,1.98622205,4779.0,4778.9,1.4084]
[1756046332495,1.98622205,4779.0,4778.9,0.9655]
[1756046332702,1.98622205,4779.0,4778.9,0.8128]
[1756046333098,0.3372,4778.9,4778.5,0.2387]
[1756046333295,1.3395,4778.6,4778.5,0.65733]
[1756046333494,1.98622205,4778.6,4778.5,0.65733]
[1756046333705,1.98622205,4778.6,4778.5,0.96553]
[1756046334099,1.98622205,4778.6,4778.5,1.19073]
[1756046334803,1.98622205,4778.6,4778.5,1.40843]
[1756046335505,1.98622205,4778.6,4778.5,1.19073]
[1756046336006,1.98622205,4778.6,4778.5,0.96553]
[1756046336203,1.98622205,4778.6,4778.5,1.76573]
[1756046336605,1.75682205,4778.6,4778.5,1.76573]
[1756046337104,1.98622205,4778.6,4778.5,1.76573]
[1756046337299,1.98622205,4778.6,4778.5,1.40843]
[1756046337506,1.98622205,4778.6,4778.5,0.81283]
[1756046337699,0.2278,4778.5,4778.1,0.3573]
[1756046337905,0.7745,4778.3,4778.2,1.03806]
[1756046338108,1.99673896,4778.3,4778.2,0.65736]
[1756046338404,1.43173896,4778.3,4778.0,0.41868]
[1756046338608,1.3395,4778.1,4778.0,0.65738]
[1756046338906,1.99673896,4778.1,4778.0,0.65738]
[1756046339206,1.99673896,4778.1,4778.0,0.81288]
[1756046339404,1.99673896,4778.1,4778.0,1.19078]
[1756046339703,1.99673896,4778.1,4778.0,1.76578]
[1756046340405,0.65723896,4778.1,4778.0,1.76578]
[1756046340801,0.5684,4778.5,4778.4,0.41864]
[1756046340997,0.2312,4778.5,4778.4,1.76574]
[1756046341196,1.1101,4778.8,4778.7,1.54052]
[1756046341498,1.53920361,4778.8,4778.7,1.76572]
[1756046341898,1.76700361,4778.8,4778.7,1.76572]
[1756046342298,1.53920361,4778.8,4778.7,1.76572]
[1756046342502,1.76700361,4778.8,4778.7,1.19072]
[1756046342703,1.99640361,4778.8,4778.7,1.19072]
[1756046343007,1.76700361,4778.8,4778.7,1.19072]
[1756046343209,1.99640361,4778.8,4778.7,1.19072]
[1756046343609,1.76700361,4778.8,4778.7,1.76572]
[1756046344306,1.20200361,4778.8,4778.7,1.76572]
[1756046345007,0.88810361,4778.8,4778.7,1.76572]
[1756046345601,0.65690361,4778.8,4778.7,1.76572]
[1756046347007,0.8834,4779.6,4779.5,0.95985]
[1756046347201,1.7563392,4779.6,4779.5,1.75145]
[1756046347707,1.6450392,4779.6,4779.2,0.2272]
[1756046347904,0.5336,4779.3,4779.2,0.2272]
[1756046348100,0.2385,4779.1,4778.7,0.2272]
[1756046348307,1.3383,4778.8,4778.7,0.79792]
[1756046348612,1.3383,4778.8,4778.7,0.3793]
[1756046348803,1.99405437,4778.8,4778.5,0.41863]
[1756046349005,1.3383,4778.4,4778.3,0.7629]
[1756046349304,1.3383,4778.4,4778.3,1.18155]
[1756046349505,1.3383,4778.4,4778.3,1.41825]
[1756046349699,1.0998,4778.4,4778.3,1.75155]
[1756046351605,0.8834,4778.4,4778.3,1.75155]
[1756046351909,0.3892,4778.4,4778.3,1.75155]
[1756046353010,0.8834,4778.4,4778.3,1.75155]
[1756046353213,1.0998,4778.4,4778.3,1.75155]
[1756046353406,1.99454132,4778.4,4778.3,1.18155]
[1756046354714,1.75604132,4778.4,4778.3,1.75155]
[1756046355310,1.99454132,4778.4,4778.3,0.2272]
[1756046355810,0.65624132,4778.4,4778.3,1.3329]
[1756046356111,0.8834,4779.2,4779.1,0.5413]
[1756046356309,1.75645249,4779.2,4779.1,1.3329]
[1756046357017,1.75645249,4779.2,4779.1,0.7629]
[1756046357210,1.99495249,4779.2,4779.1,0.2272]
[1756046357716,1.99495249,4779.2,4779.1,0.7629]
[1756046359023,0.5336,4778.8,4778.7,1.3329]
[1756046359212,1.0998,4778.8,4778.7,1.3329]
[1756046359515,1.75645249,4778.8,4778.7,1.3329]
[1756046360417,1.99495249,4778.8,4778.7,0.9996]
[1756046361018,1.99495249,4778.8,4778.7,0.7629]
[1756046361517,1.99495249,4778.8,4778.7,0.9996]
[1756046361716,1.75645249,4778.8,4778.7,1.3329]
[1756046362419,0.88745249,4778.8,4778.7,1.52242067]
[1756046362617,0.65665249,4778.8,4778.7,1.3329]
[1756046362815,1.19322406,4779.1,4779.0,0.5413]
[1756046363120,1.75942406,4779.1,4779.0,1.75149]
[1756046363611,1.99792406,4779.1,4779.0,1.41819]
[1756046364316,1.99792406,4779.1,4779.0,0.79789]
[1756046365315,1.99792406,4779.1,4778.7,0.3333]
[1756046365316,1.3383,4779.0,4778.9,0.41859]
[1756046365616,1.99792406,4779.0,4778.9,0.2272]
[1756046367322,1.99792406,4779.0,4778.9,0.7629]
[1756046367624,1.75942406,4779.0,4778.9,1.3329]
[1756046368320,0.89042406,4779.0,4778.9,1.3329]
[1756046368521,0.65962406,4779.0,4778.9,2.73143899]
[1756046368818,0.65962406,4779.0,4778.9,2.92092243]
[1756046371927,0.65962406,4779.0,4778.9,6.92092243]
[1756046372921,0.65962406,4779.0,4778.9,6.92084339]
[1756046373318,0.65962406,4779.0,4778.9,2.92084339]
[1756046373521,1.24022406,4779.0,4778.9,2.92084339]
[1756046374725,0.89042406,4779.0,4778.9,2.92084339]
[1756046375516,1.24022406,4779.0,4778.9,2.92084339]
[1756046376831,0.65962406,4779.0,4778.9,2.92084339]
[1756046382940,0.2303,4779.9,4779.8,0.41852]
[1756046383235,0.5366,4780.0,4779.9,1.16881]
[1756046383540,1.42278548,4780.0,4779.9,1.73361]
[1756046383730,1.75868548,4780.0,4779.9,1.73361]
[1756046384541,0.89248548,4780.0,4779.9,1.73361]
[1756046385132,0.65588548,4780.0,4779.9,1.73361]
[1756046385333,0.65588548,4780.0,4779.9,2.39105437]
[1756046385533,1.1042,4781.1,4781.0,0.93412]
[1756046385828,1.3345,4781.1,4781.0,1.73352]
[1756046386839,1.3345,4781.1,4781.0,1.16872]
[1756046387139,1.3345,4781.1,4781.0,0.94972]
[1756046387332,1.3345,4781.1,4780.5,0.3366]
[1756046387539,1.3345,4780.6,4780.5,1.3151]
[1756046387941,1.3345,4780.6,4780.5,0.5313]
[1756046388440,1.3345,4780.6,4780.5,1.17796]
[1756046388640,1.3345,4780.6,4780.5,1.51456]
[1756046388944,0.3839,4781.0,4780.9,1.3151]
[1756046389138,0.3839,4781.0,4780.9,1.73353]
[1756046389640,0.9515,4781.0,4780.9,1.73353]
[1756046393443,1.1042,4781.0,4780.9,1.73353]
[1756046393742,1.3345,4781.0,4780.9,1.73353]
[1756046396845,1.3345,4781.0,4780.9,1.16873]
[1756046397045,1.3345,4781.0,4780.1,1.04625]
[1756046397046,0.5366,4780.8,4780.7,0.65304]
[1756046397242,1.3345,4780.8,4780.7,1.16874]
[1756046397544,1.3345,4780.8,4780.7,1.73354]
[1756046397545,1.98129407,4780.8,4780.7,1.73354]
[1756046398541,1.98129407,4780.8,4780.7,0.94974]
[1756046398744,1.98129407,4780.8,4780.7,0.80354]
[1756046399047,1.98129407,4780.8,4780.7,0.94974]
[1756046399242,1.98129407,4780.8,4780.7,1.51454]
[1756046400342,1.18339407,4780.8,4780.5,0.65306]
[1756046400540,1.3345,4780.6,4780.5,0.41846]
[1756046400740,0.5366,4779.5,4779.4,0.5157]
[1756046400940,0.5366,4779.5,4779.4,1.3151]
[1756046400941,1.98129407,4779.5,4779.4,1.3151]
[1756046401143,1.98129407,4779.5,4779.4,1.73366]
[1756046405449,1.3345,4778.9,4778.8,0.93431]
[1756046405655,1.3345,4778.9,4778.8,1.16891]
[1756046406151,1.3345,4778.9,4778.8,1.73371]
[1756046406447,0.3839,4778.9,4778.8,1.73371]
[1756046406650,0.1473,4778.9,4778.8,1.73371]
[1756046406844,0.3359,4779.2,4779.1,0.94268]
[1756046407044,0.7776,4779.7,4779.6,1.74044]
[1756046407244,1.42482283,4779.7,4779.6,1.74044]
[1756046407642,1.97462283,4779.7,4779.6,1.74044]
[1756046407846,0.80652283,4779.7,4779.6,1.74044]
[1756046408450,0.64722283,4779.7,4779.6,1.74044]
[1756046410454,20.5314,4780.6,4780.5,1.74036]
[1756046410655,1.97460094,4780.6,4780.5,1.74036]
[1756046410859,0.96420094,4780.6,4780.5,1.74036]
[1756046411154,0.64720094,4780.6,4780.5,3.13889899]
[1756046422464,0.64720094,4780.6,4780.5,1.74036]
[1756046423275,0.80650094,4780.6,4780.5,1.74036]
[1756046423564,1.75840094,4780.6,4780.5,1.74036]
[1756046423758,1.97460094,4780.6,4780.5,1.74036]
[1756046424268,1.03670094,4780.6,4780.5,1.74036]
[1756046424668,0.64720094,4780.6,4780.5,1.74036]
[1756046427869,1.097,4781.4,4781.3,0.94249]
[1756046428069,1.97507905,4781.4,4781.3,1.74029]
[1756046432267,0.64767905,4781.4,4781.3,3.13882899]
[1756046432764,0.4929,4781.8,4781.7,0.94246]
[1756046433064,1.14047802,4781.8,4781.7,1.74026]
[1756046433470,0.80687802,4781.8,4781.7,1.74026]
[1756046435472,1.37067802,4781.8,4781.7,1.74026]
[1756046435672,1.97497802,4781.8,4781.7,1.74026]
[1756046437674,0.64757802,4781.8,4781.7,1.74026]
[1756046438765,0.64757802,4781.8,4781.7,3.13879899]
[1756046439575,1.3227,4782.5,4782.4,1.7461]
[1756046440368,1.3227,4782.5,4782.4,0.4183]
[1756046440571,1.3227,4782.2,4782.1,0.41832]
[1756046440771,0.1565,4782.0,4781.9,0.65214]
[1756046440969,1.3227,4782.0,4781.9,0.64094]
[1756046441171,1.3227,4782.0,4781.9,1.51234]
[1756046441373,1.3227,4782.0,4781.9,1.74614]
[1756046443276,0.41824,4783.1,4782.0,1.04583]
[1756046443477,1.3227,4782.4,4782.3,1.7461]
[1756046443771,1.3227,4782.4,4782.3,0.7631]
[1756046443974,1.3227,4782.4,4782.2,0.41831]
[1756046444175,0.5666,4782.3,4782.2,0.41831]
[1756046444374,1.3227,4782.3,4782.2,0.41831]
[1756046444769,1.3227,4782.3,4782.2,1.14151]
[1756046444977,0.153,4782.3,4782.2,1.74611]
[1756046446275,1.3227,4782.3,4782.2,1.74611]
[1756046446475,0.4461,4782.1,4782.0,0.41833]
[1756046446674,1.3227,4782.1,4782.0,0.41833]
[1756046447279,1.3227,4782.1,4782.0,0.72903]
[1756046447481,1.3227,4782.1,4782.0,1.74613]
[1756046448277,0.8766,4782.1,4782.0,1.74613]
[1756046449479,0.9476,4782.4,4782.3,1.2937]
[1756046449779,1.3227,4782.4,4782.3,1.7461]
[1756046451480,1.96742054,4782.4,4782.3,1.7461]
[1756046453984,1.18222054,4782.4,4782.3,1.7461]
[1756046454182,1.96742054,4782.4,4782.3,1.7461]
[1756046455387,1.96742054,4782.4,4782.3,0.4183]
[1756046455583,1.96742054,4782.4,4781.7,1.04588]
[1756046455584,0.3845,4781.8,4781.7,0.7631]
[1756046455778,1.3227,4781.8,4781.7,1.3278]
[1756046456589,0.8766,4781.8,4781.7,1.74616]
[1756046456882,0.153,4781.8,4781.7,1.74616]
[1756046457276,0.79529736,4782.0,4781.9,0.79944]
[1756046457489,1.96499732,4782.0,4781.9,1.74614]
[1756046458386,1.96499732,4782.0,4781.9,1.40404]
[1756046458577,0.3391,4781.9,4781.6,0.99426]
[1756046458781,0.5375,4781.5,4781.4,0.7671]
[1756046458983,1.3227,4781.5,4781.4,1.71533701]
[1756046459183,1.96527923,4781.5,4781.4,1.71533701]
[1756046459380,1.96527923,4781.5,4781.4,1.93393701]
[1756046459581,0.64257923,4781.5,4781.4,1.93393701]
[1756046459777,0.4956,4782.2,4782.1,0.3811]
[1756046459983,1.51917022,4782.2,4782.1,1.3278]
[1756046460178,1.74678805,4782.2,4782.1,1.3278]
[1756046460384,1.96538805,4782.2,4782.1,1.74612]
[1756046462889,1.96538805,4782.2,4782.1,1.40402]
[1756046463093,1.96538805,4782.2,4782.1,1.17022]
[1756046463482,1.96538805,4782.2,4782.1,0.41832]
[1756046466405,1.96538805,4782.2,4782.1,0.63692]
[1756046466810,1.96626789,4782.2,4782.1,0.63692]
[1756046468002,1.96626789,4782.2,4782.1,1.72962]
[1756046468196,1.96626789,4782.2,4782.1,1.39302]
[1756046469308,1.96626789,4782.2,4782.1,1.72962]
[1756046471107,1.96626789,4782.2,4782.1,1.5811571]
[1756046471299,0.79656789,4782.2,4782.1,1.9177571]
[1756046471503,0.64356789,4782.2,4782.1,1.9177571]
[1756046472206,0.3813,4783.2,4783.1,0.95343]
[1756046472402,0.3813,4783.2,4783.1,1.61663]
[1756046472403,0.7101,4783.2,4783.1,1.61663]
[1756046472998,0.2317,4783.2,4783.1,1.61663]
[1756046473299,1.0819,4783.6,4783.5,0.4182]
[1756046473607,1.3199,4783.6,4783.5,1.6166]
[1756046476306,0.7101,4783.6,4783.5,1.6166]
[1756046476506,1.0996,4783.6,4783.5,1.6166]
[1756046476711,1.3199,4783.6,4783.5,1.6166]
[1756046476917,1.3199,4783.6,4783.5,1.1786]
[1756046477218,0.5328,4783.6,4783.2,0.2285]
[1756046477420,0.5328,4783.3,4783.2,1.17863]
[1756046477613,0.238,4783.2,4782.8,0.64106]
[1756046477811,1.3199,4782.9,4782.8,0.41826]
[1756046478013,1.3199,4782.9,4782.8,0.57676]
[1756046478320,1.3199,4782.9,4782.8,1.39056]
[1756046478514,1.3199,4782.9,4782.8,1.61666]
[1756046479514,1.3199,4782.9,4782.8,1.17866]
[1756046480317,1.3199,4782.9,4782.8,1.39056]
[1756046480714,1.3199,4782.9,4782.8,1.61666]
[1756046480922,0.5328,4783.3,4783.2,0.95343]
[1756046481219,0.5328,4783.3,4783.2,1.61663]
[1756046481629,1.3199,4783.3,4783.2,1.61663]
[1756046481824,0.7101,4783.3,4783.2,1.61663]
[1756046482123,0.2317,4783.3,4783.2,1.61663]
[1756046482319,0.7101,4783.3,4783.2,1.61663]
[1756046482516,1.3199,4783.3,4783.2,1.61663]
[1756046483622,1.3199,4783.3,4783.2,1.87545055]
[1756046484225,1.95366477,4783.3,4783.2,1.87545055]
[1756046485619,1.73336477,4783.3,4783.2,1.87545055]
[1756046485823,1.34386477,4783.3,4783.2,1.87545055]
[1756046487225,1.95366477,4783.3,4783.2,1.87545055]
[1756046489628,1.95366477,4783.3,4783.2,0.25882055]
[1756046489925,3.35220376,4783.3,4783.2,0.25882055]
[1756046490526,1.0819,4782.3,4782.2,0.95591]
[1756046490725,1.3199,4782.3,4782.2,0.41831]
[1756046491127,1.9537788,4782.3,4782.2,0.41831]
[1756046491323,1.9537788,4782.3,4782.2,0.95591]
[1756046491631,1.9537788,4782.3,4782.2,1.74141]
[1756046492921,1.9537788,4782.3,4782.2,1.17871]
[1756046493226,1.9537788,4782.3,4782.1,0.41832]
[1756046493227,1.3199,4782.2,4782.1,0.41832]
[1756046493527,1.9537788,4782.2,4782.1,0.41832]
[1756046495424,1.9537788,4782.2,4782.1,1.74142]
[1756046496529,1.9537788,4782.2,4782.1,0.95592]
[1756046499029,1.4954788,4782.2,4781.9,0.2281]
[1756046499227,1.3188,4781.6,4781.5,0.41838]
[1756046499433,1.9526788,4781.6,4781.5,0.41838]
[1756046500431,1.9526788,4781.6,4781.5,1.18068]
[1756046500625,1.9526788,4781.6,4781.5,1.52158]
[1756046503133,1.3188,4781.6,4781.5,1.52158]
[1756046503329,1.3188,4781.6,4781.5,0.94868]
[1756046504227,1.3188,4781.6,4781.5,0.5303]
[1756046504422,0.7836,4781.5,4781.3,0.87849]
[1756046504627,1.3188,4781.4,4781.3,1.18069]
[1756046504822,1.3188,4781.4,4781.3,1.52159]
[1756046505221,1.3188,4781.4,4781.1,0.41841]
[1756046505531,0.7836,4781.0,4780.9,0.232]
[1756046505831,0.5352,4780.7,4780.6,0.56925]
[1756046506130,1.3188,4780.7,4780.6,0.79735]
[1756046506335,1.3188,4780.7,4780.6,0.3789]
[1756046506723,1.3188,4780.7,4780.6,0.5303]
[1756046506926,1.3188,4780.7,4780.6,0.7623]
[1756046507428,1.3188,4780.7,4780.6,1.1032]
[1756046508328,1.3188,4780.7,4780.6,1.3275]
[1756046509730,1.3188,4780.7,4780.6,0.7623]
[1756046510037,1.1016,4780.4,4780.3,0.56928]
[1756046510228,1.3188,4780.4,4780.3,0.56928]
[1756046510730,1.3188,4780.4,4780.3,0.1508]
[1756046510934,1.3188,4780.0,4779.9,0.41851]
[1756046511131,1.3188,4780.0,4779.9,1.18081]
[1756046511435,1.3188,4780.0,4779.9,1.52171]
[1756046511837,1.3188,4780.0,4779.9,1.74601]
[1756046512031,0.8797,4780.0,4779.9,1.74601]
[1756046512230,0.7262,4780.0,4779.9,1.74601]
[1756046513335,0.9743,4780.3,4780.2,1.51399]
[1756046513638,0.3817,4780.3,4780.2,1.74599]
[1756046514342,0.7262,4780.3,4780.2,1.74599]
[1756046516242,0.1441,4780.3,4780.2,1.74599]
[1756046516737,0.3817,4780.6,4780.5,1.74596]
[1756046518136,0.7262,4780.6,4780.5,1.74596]
[1756046518341,1.3188,4780.6,4780.5,1.74596]
[1756046521944,1.3188,4780.6,4780.5,0.87856]
[1756046522246,1.73726,4780.6,4780.3,0.41848]
[1756046522444,1.3188,4780.5,4780.4,0.41847]
[1756046522832,1.3188,4780.5,4780.4,0.64657]
[1756046523041,1.3188,4780.5,4780.4,1.18077]
[1756046523240,1.95250617,4780.5,4780.4,1.52167]
[1756046523449,1.95250617,4780.5,4780.4,1.74597]
[1756046524047,1.3188,4780.5,4780.4,1.74597]
[1756046524250,1.95260041,4780.5,4780.4,1.74597]
[1756046524845,1.3188,4780.5,4780.4,1.74597]
[1756046525045,1.0969,4780.5,4780.4,1.74597]
[1756046525246,1.95269182,4780.5,4780.4,1.74597]
[1756046525748,1.51359182,4780.5,4780.4,1.74597]
[1756046526056,0.9434,4780.8,4780.7,1.74595]
[1756046526254,1.3602366,4780.8,4780.7,1.74595]
[1756046526447,0.6340366,4780.8,4780.7,1.74595]
[1756046526648,0.6036,4781.4,4781.3,0.94489]
[1756046526843,0.6340072,4781.5,4781.3,0.94489]
[1756046527045,0.6340072,4781.4,4781.3,1.30169]
[1756046527554,0.6340072,4781.4,4781.3,1.76679]
[1756046528843,0.6047,4782.0,4781.9,0.94854]
[1756046529048,1.97695844,4782.0,4781.9,1.77044]
[1756046529553,1.97695844,4782.0,4781.9,0.5384]
[1756046530249,1.97695844,4782.0,4781.9,1.3521]
[1756046530744,0.2394,4781.9,4781.8,0.41834]
[1756046530956,0.2394,4781.9,4781.6,0.64646]
[1756046530957,0.542,4781.7,4781.6,0.64646]
[1756046531255,1.97695844,4781.7,4781.6,0.41836]
[1756046531547,1.97695844,4781.7,4781.6,0.64646]
[1756046531954,1.97695844,4781.7,4781.6,1.19376]
[1756046532655,1.97695844,4781.7,4781.6,1.77046]
[1756046532956,0.63435844,4781.7,4781.6,1.77046]
[1756046533155,0.9439,4782.3,4782.2,1.77041]
[1756046533450,1.01715287,4782.3,4782.2,1.77041]
[1756046533650,0.63445287,4782.3,4782.2,1.77041]
[1756046533852,0.63445287,4782.3,4782.2,3.53189351]
[1756046534058,1.1032,4783.1,4783.0,0.94844]
[1756046534355,1.97704195,4783.1,4783.0,1.77034]
[1756046534848,1.51564195,4783.1,4783.0,1.77034]
[1756046536059,1.97704195,4783.1,4783.0,1.77034]
[1756046537059,0.63444195,4783.1,4783.0,1.77034]
[1756046537255,1.1032,4783.6,4783.5,1.7703]
[1756046537556,1.51417042,4783.6,4783.5,1.7703]
[1756046537746,1.97557042,4783.6,4783.5,1.7703]
[1756046537948,0.63297042,4783.6,4783.5,1.7703]
[1756046538146,1.35487042,4783.6,4783.5,1.7703]
[1756046538349,1.3426,4783.6,4783.5,1.7703]
[1756046540062,1.1032,4783.6,4783.5,1.7703]
[1756046541462,0.7219,4783.6,4783.5,1.7703]
[1756046541960,0.3827,4783.9,4783.8,1.77027]
[1756046542161,1.76077,4783.9,4783.8,1.77027]
[1756046542352,1.3426,4783.9,4783.8,1.3521]
[1756046544160,1.3426,4783.9,4783.8,0.7754]
[1756046544361,1.3426,4783.9,4783.8,1.3521]
[1756046547664,0.8812,4783.9,4783.8,1.3521]
[1756046549168,0.7219,4783.9,4783.8,1.3521]
[1756046549361,0.1557,4784.2,4784.1,1.77025]
[1756046549559,0.7219,4784.2,4784.1,1.3521]
[1756046550166,0.9439,4784.2,4784.1,1.3521]
[1756046551464,1.1833,4784.2,4784.1,1.3521]
[1756046551665,1.3426,4784.2,4784.1,1.3521]
[1756046552163,0.7219,4784.2,4784.1,1.3521]
[1756046552665,1.3426,4784.2,4784.1,1.3521]
[1756046552866,0.99675,4784.0,4783.9,0.3762]
[1756046553067,1.37945,4784.0,4783.8,0.18537]
[1756046553365,1.60145,4784.0,4783.9,0.5302]
[1756046553558,1.76075,4784.0,4783.9,1.0085]
[1756046554964,1.76075,4784.0,4783.9,0.3844]
[1756046555160,1.3426,4783.7,4783.6,1.05279]
[1756046556367,1.97520562,4783.7,4783.6,1.05279]
[1756046560174,1.97520562,4783.7,4783.6,1.42669]
[1756046560470,1.97520562,4783.7,4783.6,0.80259]
[1756046560974,1.97520562,4783.7,4783.6,1.21199]
[1756046561174,1.97520562,4783.7,4783.6,1.45149]
[1756046561972,1.23730562,4783.7,4783.6,1.58749]
[1756046562275,1.01030562,4783.7,4783.6,1.58749]
[1756046563077,0.63260562,4783.7,4783.6,1.58749]
[1756046565074,0.63260562,4783.7,4783.6,1.76922536]
[1756046566067,0.2246,4784.3,4783.6,5.79012536]
[1756046566267,0.2246,4784.3,4784.2,1.57404]
[1756046566975,1.1192,4784.9,4784.8,1.43798]
[1756046567178,0.2246,4784.9,4784.8,1.57398]
[1756046567476,0.9704,4785.2,4785.1,1.43796]
[1756046567776,1.1192,4785.2,4785.1,1.43796]
[1756046567978,1.3535,4785.2,4785.1,1.43796]
[1756046569574,0.5443,4785.2,4784.8,0.2165]
[1756046569773,1.3535,4784.9,4784.8,1.19848]
[1756046570078,1.3535,4784.9,4784.8,1.43798]
[1756046571472,0.41805,4785.3,4785.2,1.57395]
[1756046571473,0.1576,4785.3,4785.2,1.57395]
[1756046572077,0.9704,4785.3,4785.2,1.57395]
[1756046572470,1.2047,4785.3,4785.2,1.43795]
[1756046572670,1.3535,4785.3,4785.2,1.43795]
[1756046572867,1.1192,4785.3,4785.2,1.43795]
[1756046573577,1.3535,4785.3,4784.8,0.2503]
[1756046573778,0.5443,4785.0,4784.9,1.03938]
[1756046573976,1.3535,4785.0,4784.9,1.43798]
[1756046574873,1.3535,4785.0,4784.9,0.78908]
[1756046575074,1.3535,4785.0,4784.9,0.57258]
[1756046575580,1.3535,4785.0,4784.9,0.78908]
[1756046575882,1.3535,4785.0,4784.9,1.03938]
[1756046576779,1.3535,4785.0,4784.9,0.78908]
[1756046576972,1.3535,4785.0,4784.9,0.41808]
[1756046578179,1.97324095,4785.0,4784.9,0.41808]
[1756046578981,1.3535,4784.7,4784.6,0.4181]
[1756046579283,1.3535,4784.7,4784.6,0.5726]
[1756046579582,1.3535,4784.7,4784.6,1.438]
[1756046579781,1.3535,4784.7,4784.6,0.7891]
[1756046580373,1.3535,4784.7,4784.6,1.0394]
[1756046581083,0.6201,4784.7,4784.6,1.438]
[1756046581291,1.3535,4785.5,4785.4,1.43792]
[1756046581582,1.3535,4785.5,4784.9,0.136]
[1756046581583,0.5443,4785.2,4784.8,0.2165]
[1756046581780,1.97318599,4785.1,4785.0,0.41806]
[1756046582985,1.97318599,4785.1,4785.0,0.63456]
[1756046583281,1.97318599,4785.1,4785.0,0.2165]
[1756046583584,1.3535,4785.0,4784.9,1.03937]
[1756046583883,1.97318599,4785.0,4784.9,1.43797]
[1756046585880,1.97318599,4785.0,4784.9,0.78907]
[1756046586782,1.97318599,4785.0,4784.9,1.19847]
[1756046586981,1.97318599,4785.0,4784.9,1.43797]
[1756046587181,1.73888599,4785.0,4784.9,1.43797]
[1756046587487,1.73888599,4785.0,4784.9,1.57437]
[1756046587789,1.73888599,4785.0,4784.9,1.43797]
[1756046587985,1.95688599,4785.0,4784.9,1.43797]
[1756046589182,1.95688599,4785.0,4784.9,0.41807]
[1756046591785,1.95688599,4785.0,4784.9,0.81107]
[1756046594086,1.95688599,4785.0,4784.9,1.06157]
[1756046594389,1.95688599,4785.0,4784.9,1.43427]
[1756046596385,1.90688599,4785.0,4784.9,1.43427]
[1756046597693,0.84428599,4785.0,4784.9,1.43427]
[1756046597881,1.00338599,4785.0,4784.9,1.57067]
[1756046598388,1.77768599,4785.0,4784.9,1.43427]